bitfinex-derivatives/quotes_SOLF0:USTF0_20250625
["timestamp","ask_amount","ask_price","bid_price","bid_amount"]
[1750890820587,6.9675,143.45,143.43,6.9682]
[1750890820886,3.48778536,143.48,143.4,3.48778536]
[1750890821081,3.48778536,143.48,143.43,6.968]
[1750890821292,3.48778536,143.48,143.4,3.48778536]
[1750890821488,6.967,143.46,143.4,3.48778536]
[1750890821690,4.7909,143.5,143.38,41.6597]
[1750890821691,37.0726,143.5,143.42,3.48778536]
[1750890821894,6.9666,143.47,143.42,38.12778536]
[1750890822088,3.48778536,143.48,143.43,6.968]
[1750890822487,6.9671,143.46,143.43,6.968]
[1750890823688,10.45368536,143.48,143.42,34.64]
[1750890823890,3.48778536,143.48,143.42,34.64]
[1750890824083,6.9665,143.47,143.44,6.9675]
[1750890825193,6.9665,143.47,143.45,6.9672]
[1750890825382,3.48778536,143.48,143.45,6.9672]
[1750890825584,37.0726,143.5,143.42,34.64]
[1750890825787,6.9663,143.47,143.42,34.64]
[1750890826392,6.9663,143.47,143.44,6.9675]
[1750890826689,3.48778536,143.49,143.44,6.9675]
[1750890829297,6.9668,143.46,143.44,6.9675]
[1750890830294,6.9665,143.47,143.44,6.9675]
[1750890830495,3.48778536,143.49,143.45,6.9672]
[1750890830695,6.9659,143.48,143.45,6.9672]
[1750890830995,34.64,143.5,143.46,6.9664]
[1750890831396,6.9657,143.49,143.46,6.9664]
[1750890831585,6.9657,143.49,143.47,6.9662]
[1750890832186,6.9657,143.49,143.46,6.9665]
[1750890832397,6.9658,143.48,143.46,6.9665]
[1750890833098,6.9657,143.49,143.46,6.9665]
[1750890834403,6.9659,143.48,143.46,6.9665]
[1750890835809,41.6052,143.5,143.43,10.64538536]
[1750890836003,41.6052,143.5,143.45,3.48778536]
[1750890836202,6.9652,143.5,143.45,3.48778536]
[1750890836505,10.0161022,143.52,143.45,3.48778536]
[1750890836698,38.12778536,143.53,143.47,3.48778536]
[1750890836898,34.64,143.53,143.47,3.48778536]
[1750890837098,6.9644,143.51,143.49,6.9651]
[1750890838001,38.12778536,143.53,143.48,6.9656]
[1750890838305,38.12778536,143.53,143.46,34.64]
[1750890838507,6.9653,143.5,143.47,6.9661]
[1750890839503,6.9656,143.49,143.47,6.9661]
[1750890839710,3.48778536,143.51,143.46,41.6066]
[1750890840203,3.48778536,143.51,143.46,34.64]
[1750890841210,3.48778536,143.51,143.46,41.6063]
[1750890841897,3.48778536,143.51,143.46,6.9663]
[1750890842702,3.48778536,143.51,143.47,6.9662]
[1750890843607,3.48778536,143.51,143.46,6.9666]
[1750890843808,3.48778536,143.51,143.44,3.48778536]
[1750890844212,6.9654,143.49,143.47,6.966]
[1750890845417,6.9651,143.5,143.47,6.966]
[1750890846010,6.9656,143.49,143.47,6.966]
[1750890847812,34.64,143.53,143.44,12.11349939]
[1750890848017,34.64,143.53,143.45,8.61889104]
[1750890848715,6.9646,143.51,143.49,6.965]
[1750890848914,34.64,143.53,143.46,3.49460835]
[1750890849114,34.64,143.53,143.46,12.11349939]
[1750890849420,34.64,143.53,143.47,34.86]
[1750890850116,6.9641,143.52,143.5,6.9646]
[1750890851207,6.9641,143.52,143.49,6.9651]
[1750890852519,6.9641,143.52,143.5,6.9647]
[1750890852811,6.9636,143.53,143.48,3.49460835]
[1750890853005,38.35460835,143.56,143.48,19.06839939]
[1750890853203,12.56586363,143.55,143.51,6.9641]
[1750890853508,6.9632,143.54,143.51,6.9641]
[1750890859017,6.9636,143.53,143.51,6.9641]
[1750890863822,6.9636,143.53,143.5,6.9646]
[1750890865418,3.4929665,143.53,143.48,4.5867]
[1750890865633,3.4929665,143.51,143.45,34.86]
[1750890866427,6.9656,143.49,143.46,6.9664]
[1750890866732,6.9656,143.49,143.45,34.86]
[1750890866926,6.9656,143.49,143.46,6.9663]
[1750890868129,6.9658,143.48,143.46,6.9663]
[1750890870233,6.9658,143.48,143.45,41.827]
[1750890870728,3.4929665,143.49,143.44,2.3964]
[1750890870929,3.4929665,143.49,143.45,6.967]
[1750890871133,2.47200055,143.51,143.44,2.3964]
[1750890871330,3.4929665,143.51,143.46,6.9665]
[1750890871631,6.9656,143.49,143.46,6.9665]
[1750890872631,6.9656,143.49,143.47,6.9663]
[1750890873421,6.9656,143.49,143.46,6.9666]
[1750890873931,6.9658,143.48,143.46,6.9666]
[1750890874326,3.4929665,143.51,143.45,15.63216505]
[1750890874623,6.9663,143.48,143.45,6.967]
[1750890874928,3.4929665,143.51,143.45,6.967]
[1750890875123,3.4929665,143.49,143.44,15.63286505]
[1750890875323,3.4929665,143.49,143.42,8.66516505]
[1750890875530,6.9675,143.45,143.42,8.66516505]
[1750890875830,6.9675,143.45,143.42,15.63346505]
[1750890876028,3.4929665,143.47,143.42,15.63346505]
[1750890876219,3.4929665,143.47,143.43,6.9679]
[1750890876423,3.4929665,143.47,143.41,43.38516505]
[1750890876624,3.4929665,143.47,143.42,8.66516505]
[1750890876834,3.4929665,143.47,143.42,6.9684]
[1750890877225,3.4929665,143.47,143.43,6.9681]
[1750890878523,6.9671,143.46,143.43,6.9681]
[1750890879228,3.4929665,143.47,143.43,6.9681]
[1750890879427,3.4929665,143.47,143.42,6.9685]
[1750890879623,6.9676,143.45,143.42,6.9685]
[1750890879829,3.4929665,143.47,143.42,6.9687]
[1750890880127,3.4929665,143.47,143.4,8.66516505]
[1750890880328,6.9676,143.45,143.42,6.9685]
[1750890882936,6.9678,143.44,143.4,8.66516505]
[1750890883434,6.9675,143.45,143.42,6.9685]
[1750890885832,6.9675,143.45,143.43,6.9682]
[1750890886240,6.9675,143.45,143.4,3.4929665]
[1750890886527,6.9675,143.45,143.42,6.9683]
[1750890886934,6.9675,143.45,143.4,3.4929665]
[1750890887537,6.9675,143.45,143.39,13.28196505]
[1750890887736,6.9675,143.45,143.39,16.77493155]
[1750890888034,6.9675,143.45,143.42,6.9685]
[1750890888234,38.2129665,143.48,143.42,6.9685]
[1750890888732,48.23586071,143.48,143.41,6.969]
[1750890888930,6.9682,143.44,143.41,6.969]
[1750890889130,3.4929665,143.46,143.41,6.969]
[1750890890029,6.9682,143.44,143.41,6.969]
[1750890890629,6.9683,143.43,143.41,6.969]
[1750890890824,44.73880239,143.48,143.42,6.9687]
[1750890891031,3.4929665,143.47,143.42,6.9687]
[1750890893034,6.9676,143.45,143.42,6.9687]
[1750890893734,3.4929665,143.47,143.41,6.9691]
[1750890894429,6.9681,143.44,143.41,6.9691]
[1750890895140,6.9681,143.44,143.42,6.9687]
[1750890897942,6.9681,143.44,143.41,6.969]
[1750890899037,6.9683,143.43,143.41,6.969]
[1750890899237,3.4929665,143.43,143.38,8.66516505]
[1750890899542,6.9691,143.42,143.37,11.01236505]
[1750890899939,6.9691,143.42,143.39,6.9698]
[1750890900340,6.9691,143.42,143.4,6.9696]
[1750890901243,6.9691,143.42,143.39,6.97]
[1750890901646,6.9691,143.42,143.37,14.50533155]
[1750890902843,6.9691,143.42,143.4,6.9695]
[1750890903046,34.74,143.44,143.37,14.51074075]
[1750890903244,34.74,143.44,143.39,3.4983757]
[1750890903438,6.9702,143.39,143.38,8.66516505]
[1750890903642,3.4983757,143.41,143.35,8.66516505]
[1750890903841,121.76133594,143.44,143.37,6.971]
[1750890904039,6.9699,143.4,143.37,6.971]
[1750890904441,6.9689,143.42,143.36,3.4983757]
[1750890904636,3.4983757,143.46,143.38,3.4983757]
[1750890904842,34.94,143.46,143.41,6.9689]
[1750890905034,6.9675,143.45,143.41,6.9689]
[1750890905236,34.94,143.46,143.4,3.4983757]
[1750890905443,34.94,143.46,143.42,6.9683]
[1750890905650,6.9674,143.45,143.42,6.9683]
[1750890906147,41.907,143.46,143.43,6.9682]
[1750890908551,41.907,143.46,143.44,6.9676]
[1750890908753,6.967,143.46,143.4,19.46854075]
[1750890909352,38.4383757,143.49,143.4,15.97016505]
[1750890909655,12.52321341,143.48,143.41,8.66516505]
[1750890909848,6.9672,143.46,143.43,6.9682]
[1750890910848,3.4983757,143.49,143.42,3.4983757]
[1750890911052,3.4983757,143.49,143.43,8.66516505]
[1750890911455,6.9661,143.48,143.43,8.66516505]
[1750890911750,34.94,143.5,143.44,3.4983757]
[1750890911960,38.4383757,143.54,143.46,3.4983757]
[1750890912251,38.4383757,143.54,143.45,8.66516505]
[1750890912252,38.4383757,143.54,143.48,3.4983757]
[1750890912449,38.43343337,143.54,143.47,48.25826505]
[1750890912853,38.43343337,143.54,143.48,8.66516505]
[1750890913054,38.43343337,143.54,143.48,12.15859842]
[1750890913055,34.94,143.54,143.48,12.15859842]
[1750890913245,41.903,143.54,143.48,12.15859842]
[1750890913954,6.9635,143.53,143.5,6.9646]
[1750890916058,6.9631,143.54,143.51,6.9643]
[1750890916357,34.92,143.57,143.5,3.49343337]
[1750890917058,6.9628,143.55,143.51,6.9642]
[1750890917352,6.9628,143.55,143.49,8.66516505]
[1750890917557,6.9628,143.55,143.51,6.9641]
[1750890918060,6.9628,143.55,143.52,6.9638]
[1750890921662,6.9622,143.56,143.53,6.9633]
[1750890922360,6.9629,143.55,143.52,6.9637]
[1750890922861,34.92,143.57,143.51,34.92]
[1750890923062,6.9627,143.55,143.52,6.9638]
[1750890923854,6.9621,143.56,143.53,6.9633]
[1750890925158,6.9621,143.56,143.54,6.9628]
[1750890926664,41.8817,143.57,143.54,6.9628]
[1750890927062,41.8817,143.57,143.52,3.49343337]
[1750890927063,6.9617,143.57,143.55,6.9622]
[1750890927258,6.9607,143.59,143.53,2.2893]
[1750890927658,38.41343337,143.6,143.57,6.9614]
[1750890927858,34.92,143.6,143.54,3.49343337]
[1750890928257,6.9605,143.59,143.56,6.9616]
[1750890928462,6.9605,143.59,143.54,3.49343337]
[1750890928856,6.9605,143.59,143.56,6.9616]
[1750890929061,3.49343337,143.58,143.53,2.2893]
[1750890929369,3.49343337,143.58,143.52,2.4404]
[1750890929666,6.9622,143.56,143.53,6.9632]
[1750890930167,6.9624,143.55,143.53,6.9632]
[1750890936473,6.9624,143.55,143.52,9.404]
[1750890936772,3.49343337,143.56,143.51,34.92]
[1750890937173,38.55343337,143.56,143.51,34.92]
[1750890937474,38.55343337,143.56,143.49,2.3889]
[1750890937766,38.55343337,143.56,143.5,6.9646]
[1750890938371,6.9644,143.51,143.49,6.9651]
[1750890940572,35.06,143.56,143.48,35.06]
[1750890940573,6.9648,143.5,143.48,35.06]
[1750890940768,3.49343337,143.5,143.45,39.6984]
[1750890940971,6.9665,143.47,143.45,35.06]
[1750890941163,3.49343337,143.5,143.42,37.4735]
[1750890941369,3.49343337,143.48,143.42,37.4735]
[1750890942068,38.55343337,143.48,143.41,4.7317]
[1750890942479,6.9679,143.44,143.42,6.9685]
[1750890942671,38.55343337,143.48,143.42,6.9685]
[1750890943073,6.9678,143.44,143.42,6.9685]
[1750890943377,3.49343337,143.46,143.41,11.7007]
[1750890943568,3.49343337,143.46,143.39,35.06]
[1750890943969,6.9678,143.44,143.41,6.9692]
[1750890944176,3.49343337,143.46,143.39,35.06]
[1750890944673,6.968,143.44,143.41,6.9689]
[1750890945372,6.9674,143.45,143.42,6.9684]
[1750890945573,3.49343337,143.46,143.39,38.55343337]
[1750890945972,6.9673,143.45,143.42,6.9686]
[1750890946272,3.49343337,143.46,143.42,6.9686]
[1750890946680,10.46043337,143.46,143.43,6.9682]
[1750890947178,3.49343337,143.46,143.39,38.55343337]
[1750890947375,38.55343337,143.48,143.39,38.55343337]
[1750890948076,6.9668,143.46,143.43,6.9679]
[1750890949477,6.9665,143.47,143.44,6.9677]
[1750890949780,35.06,143.48,143.41,3.49343337]
[1750890950178,42.0261,143.48,143.45,6.9671]
[1750890950877,35.06,143.48,143.46,6.9667]
[1750890951181,6.9655,143.49,143.46,6.9667]
[1750890951381,6.9658,143.48,143.46,6.9667]
[1750890951679,3.49343337,143.5,143.43,35.08]
[1750890951880,6.966,143.48,143.43,35.08]
[1750890952072,3.49343337,143.5,143.45,6.9672]
[1750890953177,6.9663,143.47,143.45,6.9672]
[1750890955283,6.966,143.48,143.45,6.9672]
[1750890955483,6.966,143.48,143.46,6.9667]
[1750890958784,6.9665,143.47,143.45,6.967]
[1750890959288,3.49343337,143.5,143.44,6.9676]
[1750890960089,6.9668,143.46,143.44,6.9676]
[1750890961283,6.9665,143.47,143.44,6.9676]
[1750890963096,3.49343337,143.48,143.39,8.61534092]
[1750890963386,3.49343337,143.46,143.4,35.08]
[1750890963877,3.49343337,143.46,143.42,6.9685]
[1750890964081,35.08,143.47,143.42,6.9685]
[1750890964287,38.57343337,143.47,143.42,6.9685]
[1750890965190,38.57343337,143.47,143.4,35.08]
[1750890965191,6.9675,143.45,143.43,6.9681]
[1750890965589,35.08,143.47,143.41,3.49343337]
[1750890965795,35.08,143.47,143.41,5.83603337]
[1750890966089,6.9671,143.46,143.43,6.968]
[1750890966285,35.08,143.47,143.43,6.968]
[1750890967291,6.9675,143.45,143.43,6.968]
[1750890967587,38.57343337,143.47,143.42,6.9684]
[1750890967893,6.9677,143.45,143.42,6.9684]
[1750890969091,3.49343337,143.44,143.36,3.49343337]
[1750890969491,6.9691,143.42,143.38,6.9705]
[1750890969886,6.9691,143.42,143.36,3.49343337]
[1750890970082,6.9692,143.41,143.39,6.97]
[1750890970898,6.969,143.42,143.39,6.97]
[1750890972102,6.969,143.42,143.4,6.9696]
[1750890972301,3.49343337,143.45,143.38,3.49343337]
[1750890972808,6.9683,143.43,143.41,6.9691]
[1750890975008,6.9683,143.43,143.4,6.9694]
[1750890977703,6.9683,143.43,143.41,6.9692]
[1750890977900,35.08,143.47,143.41,6.9692]
[1750890977901,6.968,143.44,143.41,6.9692]
[1750890981211,6.9682,143.43,143.41,6.9692]
[1750890990917,6.9687,143.42,143.4,6.9692]
[1750890993422,6.9685,143.43,143.38,8.61534092]
[1750890993821,6.9685,143.43,143.39,8.61534092]
[1750890994021,6.9685,143.43,143.4,6.9694]
[1750890994221,6.9688,143.42,143.4,6.9694]
[1750890999927,3.49766082,143.46,143.39,8.61534092]
[1750891000131,35.08,143.47,143.4,3.49766082]
[1750891000324,6.9674,143.45,143.42,6.9686]
[1750891000524,6.9674,143.45,143.4,12.11300174]
[1750891000829,6.9674,143.45,143.43,6.968]
[1750891002029,6.967,143.46,143.43,6.968]
[1750891002927,6.9673,143.45,143.43,6.968]
[1750891003430,6.9669,143.46,143.44,6.9675]
[1750891005336,6.9669,143.46,143.41,8.61534092]
[1750891005337,42.0465,143.47,143.45,6.9672]
[1750891005628,3.49766082,143.49,143.42,12.11300174]
[1750891005829,6.966,143.48,143.43,8.61534092]
[1750891006016,6.966,143.48,143.42,3.49766082]
[1750891006330,6.966,143.48,143.46,6.9667]
[1750891007633,6.966,143.48,143.45,6.967]
[1750891009129,6.9656,143.49,143.46,6.9667]
[1750891009327,34.86,143.5,143.43,3.49520779]
[1750891009526,34.86,143.5,143.45,3.49520779]
[1750891009730,6.9651,143.5,143.47,6.9659]
[1750891010322,6.9646,143.51,143.48,6.9655]
[1750891012527,6.9648,143.5,143.48,6.9655]
[1750891013534,2.2484,143.55,143.45,5.84160779]
[1750891013535,1.21269144,143.6,143.45,5.84160779]
[1750891013726,3.49520779,143.52,143.45,5.84160779]
[1750891014134,6.9647,143.51,143.48,6.9655]
[1750891018134,3.49520779,143.52,143.46,6.9663]
[1750891018334,3.49520779,143.5,143.44,34.86]
[1750891018936,6.9656,143.49,143.46,6.9664]
[1750891020039,34.86,143.52,143.45,3.49520779]
[1750891020737,38.35520779,143.55,143.47,3.49520779]
[1750891020926,34.86,143.55,143.49,3.49520779]
[1750891021125,34.86,143.55,143.51,6.9641]
[1750891021739,6.9634,143.53,143.5,6.9645]
[1750891021935,38.35520779,143.55,143.5,6.9645]
[1750891022237,38.35520779,143.55,143.48,34.86]
[1750891022439,6.9638,143.53,143.48,41.8254]
[1750891022940,6.964,143.52,143.48,41.8254]
[1750891023131,6.964,143.52,143.49,6.9653]
[1750891023537,3.49520779,143.53,143.48,34.86]
[1750891023740,3.49520779,143.51,143.45,37.1774]
[1750891023941,38.33520779,143.51,143.45,37.1774]
[1750891024242,6.9656,143.49,143.45,44.1443]
[1750891024442,38.33520779,143.51,143.45,44.1443]
[1750891024737,38.33520779,143.51,143.45,37.1774]
[1750891024937,6.9657,143.49,143.46,6.9667]
[1750891025236,38.33520779,143.51,143.45,37.1774]
[1750891025541,38.33520779,143.51,143.45,2.3374]
[1750891025835,34.84,143.51,143.45,5.83260779]
[1750891026029,35.02,143.54,143.47,3.49520779]
[1750891026944,6.9641,143.52,143.49,6.965]
[1750891027737,35.02,143.54,143.5,6.9648]
[1750891028240,35.02,143.54,143.47,3.49520779]
[1750891028842,6.9646,143.51,143.48,6.9655]
[1750891029839,6.9648,143.5,143.47,10.46120779]
[1750891030045,6.9648,143.5,143.47,6.966]
[1750891034045,6.9655,143.49,143.46,41.9866]
[1750891034246,3.49520779,143.51,143.46,6.9666]
[1750891035549,6.9659,143.48,143.46,6.9666]
[1750891037646,6.9656,143.49,143.47,6.9663]
[1750891037843,3.49520779,143.51,143.47,6.9663]
[1750891038952,6.9653,143.49,143.47,6.9663]
[1750891039352,6.9658,143.48,143.46,6.9665]
[1750891039852,6.9656,143.49,143.46,6.9665]
[1750891040049,6.9656,143.49,143.47,6.9661]
[1750891042462,6.965,143.5,143.47,6.9661]
[1750891043262,6.9653,143.49,143.47,6.9661]
[1750891044460,5.94090779,143.53,143.45,5.83260779]
[1750891044762,3.49520779,143.53,143.45,5.83260779]
[1750891045456,6.9646,143.51,143.49,6.9653]
[1750891046664,6.9646,143.51,143.48,6.9654]
[1750891051566,6.9646,143.51,143.45,5.83260779]
[1750891051762,6.964,143.52,143.47,3.49313564]
[1750891052069,4.8902,143.57,143.48,2.4473]
[1750891052368,35.02,143.56,143.51,6.964]
[1750891052870,6.9631,143.54,143.51,6.964]
[1750891053071,35.02,143.56,143.51,6.964]
[1750891053267,38.5125222,143.56,143.51,6.964]
[1750891053475,3.4925222,143.54,143.48,8.2787222]
[1750891053773,3.4925222,143.54,143.47,35.02]
[1750891053974,6.9648,143.5,143.48,6.9655]
[1750891055775,6.9645,143.51,143.47,35.02]
[1750891056374,6.9645,143.51,143.49,6.9652]
[1750891060077,6.9645,143.51,143.48,6.9655]
[1750891061281,6.9648,143.5,143.48,6.9655]
[1750891063281,6.9653,143.49,143.47,41.986]
[1750891063673,6.9653,143.49,143.47,6.966]
[1750891064980,38.3525222,143.52,143.46,134.72]
[1750891065679,6.9651,143.5,143.48,13.05458804]
[1750891066186,6.9651,143.5,143.47,6.9662]
[1750891068885,6.9656,143.49,143.47,6.9662]
[1750891073389,38.3525222,143.52,143.46,13.05458804]
[1750891073691,5.6022667,143.51,143.44,56.19331024]
[1750891073889,38.3525222,143.52,143.44,56.19331024]
[1750891073890,5.6022667,143.5,143.44,56.19331024]
[1750891074085,38.3525222,143.52,143.44,56.19331024]
[1750891074386,5.6026182,143.51,143.45,6.967]
[1750891074590,5.6026182,143.5,143.45,6.967]
[1750891074783,6.9662,143.48,143.45,6.967]
[1750891074986,38.3525222,143.52,143.45,6.967]
[1750891075290,6.9662,143.48,143.45,6.967]
[1750891076492,6.9663,143.47,143.45,6.967]
[1750891077889,6.966,143.48,143.45,6.967]
[1750891079693,6.966,143.48,143.46,6.9666]
[1750891080195,34.86,143.52,143.44,56.19331024]
[1750891080396,5.60225421,143.51,143.45,15.49128804]
[1750891080598,38.3525222,143.52,143.45,15.49128804]
[1750891080797,5.60225069,143.51,143.47,6.9661]
[1750891080997,38.3525222,143.52,143.47,6.9661]
[1750891081198,5.60224942,143.51,143.47,6.9661]
[1750891081399,6.9655,143.49,143.47,6.9661]
[1750891084601,6.9658,143.48,143.46,6.9665]
[1750891085194,6.9658,143.48,143.47,6.9663]
[1750891086701,6.9656,143.49,143.47,6.9663]
[1750891088502,6.9658,143.48,143.46,6.9665]
[1750891090495,7.83253845,143.47,143.41,15.29249192]
[1750891090696,2.23790388,143.47,143.41,15.29249192]
[1750891090894,6.9674,143.45,143.42,6.9683]
[1750891091502,6.9679,143.44,143.41,22.26129192]
[1750891091697,2.23790388,143.44,143.41,13.05458804]
[1750891091895,2.23790388,143.44,143.4,4.59130388]
[1750891091896,2.23790388,143.44,143.4,17.64589192]
[1750891092298,3.49745817,143.46,143.4,15.40798804]
[1750891092806,3.49745817,143.46,143.41,13.05458804]
[1750891093203,6.9684,143.43,143.41,20.02368804]
[1750891093393,3.49745817,143.46,143.41,13.05458804]
[1750891093598,5.59536204,143.45,143.4,15.40798804]
[1750891093800,3.49745817,143.46,143.4,15.40798804]
[1750891094008,5.59560917,143.45,143.4,15.40798804]
[1750891094306,3.49745817,143.46,143.4,15.40798804]
[1750891094605,5.59560917,143.45,143.4,15.40798804]
[1750891094810,3.49745817,143.46,143.4,15.40798804]
[1750891095008,5.59560789,143.45,143.4,15.40798804]
[1750891095308,3.49745817,143.46,143.4,15.40798804]
[1750891095499,6.9682,143.43,143.41,6.969]
[1750891096197,6.9682,143.43,143.42,8.70830525]
[1750891098609,6.9682,143.43,143.41,8.70830525]
[1750891099207,3.49748076,143.44,143.41,15.67740525]
[1750891099511,3.49748076,143.44,143.42,8.70830525]
[1750891100097,3.49748076,143.46,143.42,8.70830525]
[1750891100300,34.8,143.48,143.42,8.70830525]
[1750891100506,3.49748076,143.47,143.42,8.70830525]
[1750891100709,6.9678,143.44,143.42,8.70830525]
[1750891101010,6.9678,143.44,143.42,15.67680525]
[1750891101510,6.9675,143.45,143.42,8.70830525]
[1750891101708,3.49748076,143.47,143.44,8.70830525]
[1750891101910,34.8,143.48,143.44,8.70830525]
[1750891102408,6.9664,143.47,143.44,15.67580525]
[1750891103205,6.9668,143.46,143.44,15.67580525]
[1750891106519,26.97988804,143.55,143.44,8.70830525]
[1750891106808,40.77108076,143.53,143.48,8.70830525]
[1750891107014,38.31748076,143.53,143.48,8.70830525]
[1750891107919,34.82,143.53,143.49,8.70830525]
[1750891108619,34.82,143.53,143.51,6.9641]
[1750891109511,41.7834,143.53,143.51,6.9641]
[1750891110419,41.7834,143.53,143.5,6.9646]
[1750891110623,6.9639,143.52,143.5,6.9646]
[1750891110919,6.9639,143.52,143.49,8.70830525]
[1750891111111,6.9639,143.52,143.49,15.67320525]
[1750891111313,6.9644,143.51,143.49,6.9649]
[1750891111510,6.9644,143.51,143.48,6.9655]
[1750891111821,6.9646,143.51,143.48,6.9655]
[1750891115122,6.9646,143.51,143.49,6.9652]
[1750891115826,6.9646,143.51,143.48,6.9655]
[1750891117621,6.9646,143.51,143.46,47.87458804]
[1750891118324,6.9646,143.51,143.48,6.9653]
[1750891119129,38.31748076,143.53,143.48,6.9653]
[1750891119322,5.59989725,143.52,143.48,6.9653]
[1750891119523,38.31748076,143.53,143.48,6.9653]
[1750891119725,6.9647,143.51,143.48,6.9653]
[1750891121237,38.31748076,143.53,143.48,6.9653]
[1750891121637,6.9649,143.5,143.48,6.9653]
[1750891122827,6.9646,143.51,143.45,34.8]
[1750891123937,6.9646,143.51,143.48,6.9654]
[1750891125638,6.9649,143.5,143.48,6.9654]
[1750891125938,3.49748076,143.51,143.47,6.966]
[1750891126129,6.9649,143.5,143.47,6.966]
[1750891126330,3.49748076,143.51,143.47,6.966]
[1750891127034,6.9654,143.49,143.47,6.966]
[1750891130734,6.965,143.5,143.48,6.9658]
[1750891131136,3.49748076,143.51,143.45,34.8]
[1750891131534,3.49748076,143.51,143.45,43.47422843]
[1750891131840,3.49748076,143.51,143.47,6.9658]
[1750891132642,6.9651,143.5,143.47,6.9658]
[1750891134141,6.9651,143.5,143.48,6.9657]
[1750891134345,34.82,143.53,143.46,8.67422843]
[1750891134538,38.31466689,143.53,143.47,8.67422843]
[1750891135542,601.78,143.59,143.47,8.67422843]
[1750891135742,6.9632,143.54,143.51,6.964]
[1750891135942,6.9632,143.54,143.49,8.67422843]
[1750891136136,6.9632,143.54,143.48,14.58639532]
[1750891136340,6.9632,143.54,143.49,2.4392]
[1750891136540,6.9632,143.54,143.49,37.2392]
[1750891136943,6.9632,143.54,143.51,6.9641]
[1750891137144,3.49267011,143.52,143.46,34.8]
[1750891137337,3.49267011,143.5,143.46,34.8]
[1750891137736,6.9655,143.49,143.47,6.9661]
[1750891139450,6.9655,143.49,143.46,41.7665]
[1750891140651,6.9655,143.49,143.47,6.966]
[1750891140951,38.29267011,143.53,143.46,34.8]
[1750891141546,6.965,143.5,143.48,6.9657]
[1750891141746,6.965,143.5,143.46,34.8]
[1750891141950,6.965,143.5,143.47,6.9659]
[1750891142644,38.29267011,143.53,143.47,6.9659]
[1750891143649,38.29267011,143.53,143.46,34.8]
[1750891143956,38.29267011,143.53,143.46,47.85458804]
[1750891144655,6.9641,143.52,143.46,47.85458804]
[1750891145054,6.9641,143.52,143.49,6.9649]
[1750891146752,6.9631,143.54,143.51,6.964]
[1750891146956,34.8,143.56,143.51,6.964]
[1750891147655,34.8,143.56,143.49,3.49267011]
[1750891147861,34.8,143.56,143.51,3.49267011]
[1750891148156,41.762,143.56,143.53,6.963]
[1750891148352,80.08266428,143.58,143.51,3.49267011]
[1750891148556,6.962,143.56,143.53,6.9631]
[1750891149659,6.9625,143.55,143.53,6.9631]
[1750891150859,6.9629,143.54,143.52,6.9637]
[1750891151552,6.9626,143.55,143.52,6.9637]
[1750891153556,6.9626,143.55,143.51,3.49267011]
[1750891155162,6.9626,143.55,143.52,6.9635]
[1750891156469,6.963,143.54,143.52,6.9635]
[1750891157962,6.9626,143.55,143.52,6.9635]
[1750891158166,6.9626,143.55,143.53,6.9633]
[1750891158767,6.9621,143.56,143.53,6.9633]
[1750891159171,3.49267011,143.58,143.53,6.9633]
[1750891159465,3.49267011,143.58,143.52,6.9636]
[1750891159868,6.9629,143.54,143.52,6.9636]
[1750891160465,6.9638,143.52,143.5,2.2908]
[1750891160769,3.49267011,143.56,143.5,2.2908]
[1750891161458,34.88,143.55,143.48,34.88]
[1750891161761,6.9636,143.53,143.5,6.9648]
[1750891162364,6.9639,143.52,143.5,6.9648]
[1750891165065,6.9643,143.51,143.49,6.965]
[1750891165373,3.49267011,143.54,143.48,34.88]
[1750891165962,6.9647,143.51,143.48,34.88]
[1750891166367,3.49267011,143.54,143.48,34.88]